Cogmind - Beta 12 @@@ ROGUE MODE // 2023.04.25 @ 01:56:24 Player: Mr Goldstein Result: Destroyed by Y-54 Guardian with Flak Gun Performance ------------- Evolutions (4) 2000 Regions Visited (13) 2600 Robots Destroyed (11) 55 Value Destroyed (258) 258 Prototype IDs (30) 600 Alien Tech Used (0) 0 Bonus (1155) 1155 TOTAL SCORE: 6668 Bonus ------- Pacifist 1125 High Alert Combat Kills 4 Follower Combat Kills 656 Aligned with FarCom 300 Friendly Fire -930 Cogmind --------- Core Integrity 0/850 Matter 269/300 Energy 90/100 System Corruption 19% Temperature Cool (20) Movement Flying (32) Location -6/Hub_04(d) Parts ------- > --- POWER (1) -------- (None) > --- PROPULSION (6) --- Surge Thruster Surge Thruster (fused) > --- UTILITY (6) ------ Visual Processing Unit Improved System Shield > --- WEAPON (2) ------- Powered Hammer > --- INVENTORY (5) ---- Light Fission Core Centrium Medium Armor Plating Precision Rocket Launcher Peak State ------------ > --- POWER ------------ (None) > --- PROPULSION ------- Centrium Heavy Treads Centrium Heavy Treads Centrium Heavy Treads > --- UTILITY ---------- Visual Processing Unit > --- WEAPON ----------- Field Lobotomy Kit Powered Hammer > --- INVENTORY -------- Light Fission Core Centrium Medium Armor Plating Improved System Shield Precision Rocket Launcher [Rating: 72] Favorites ----------- Power Backup Power III Engine Backup Power III Propulsion Improved Hover Unit Treads Centrium Heavy Treads Hover Unit Improved Hover Unit Flight Unit Nuclear Pulse Thruster Utility Visual Processing Unit Device Improved Reaction Control System Processor Visual Processing Unit Hackware Improved System Shield Protection Centrium Medium Armor Plating Weapon Powered Hammer Energy Gun Backup Laser III Ballistic Gun Advanced KE Penetrator Launcher Precision Rocket Launcher Special Weapon Field Lobotomy Kit Impact Weapon Powered Hammer Build | -11 -10 -10 -10 -9 -8 -7 -7 -7 -6 -6 -6 -6 -6 ------- Run | Jun Mat Min Exi Min Mat Fac Low Low Fac Ext Cet Arc Hub Slots Evolved 8 | . . . . . 4 2 . . 2 . . . . Power . | . . . . . . . . . . . . . . Propulsion 4 | . . . . . 2 1 . . 1 . . . . Utility 4 | . . . . . 2 1 . . 1 . . . . Weapon . | . . . . . . . . . . . . . . Parts Attached 31 | . . . . . . 5 . . 5 4 10 1 6 Power . | . . . . . . . . . . . . . . Engine . | . . . . . . . . . . . . . . Core . | . . . . . . . . . . . . . . Reactor . | . . . . . . . . . . . . . . Propulsion 14 | . . . . . . 5 . . 2 1 3 1 2 Treads 4 | . . . . . . . . . . . 3 1 . Leg . | . . . . . . . . . . . . . . Wheel . | . . . . . . . . . . . . . . Hover 7 | . . . . . . 5 . . 1 1 . . . Flight 3 | . . . . . . . . . 1 . . . 2 Utility 7 | . . . . . . . . . 2 2 2 . 1 Device 1 | . . . . . . . . . . 1 . . . Storage . | . . . . . . . . . . . . . . Processor 2 | . . . . . . . . . 1 . 1 . . Hackware 3 | . . . . . . . . . 1 1 . . 1 Protection 1 | . . . . . . . . . . . 1 . . Artifact . | . . . . . . . . . . . . . . Weapon 10 | . . . . . . . . . 1 1 5 . 3 Energy Gun 1 | . . . . . . . . . . . 1 . . Energy Cannon . | . . . . . . . . . . . . . . Ballistic Gun 1 | . . . . . . . . . . . 1 . . Ballistic Cannon . | . . . . . . . . . . . . . . Launcher 3 | . . . . . . . . . 1 1 . . 1 Special Weapon 2 | . . . . . . . . . . . 1 . 1 Impact Weapon 3 | . . . . . . . . . . . 2 . 1 Slashing Weapon . | . . . . . . . . . . . . . . Piercing Weapon . | . . . . . . . . . . . . . . Special Melee Weapon . | . . . . . . . . . . . . . . Unidentified Prototypes 5 | . . . . . . . . . 1 . 4 . . Corrupted Parts 2 | . . . . . . . . . . . 1 . 1 System Corruption 18 | . . . . . . . . . . . 10 . 8 Parts Lost 14 | . . . . . . 1 4 . 3 5 1 . . Power 1 | . . . . . . . . . 1 . . . . Propulsion 10 | . . . . . . 1 4 . 1 4 . . . Utility 3 | . . . . . . . . . 1 1 1 . . Weapon . | . . . . . . . . . . . . . . Highest Loss Streak 4 | . . . . . . 1 4 . 3 3 4 . . To Critical Strikes . | . . . . . . . . . . . . . . Average Slot Usage (%) 18 | . . . . . . 34 6 . 9 19 11 33 38 Treads 3 | . . . . . . . . . . . 3 20 17 Hover 7 | . . . . . . 34 6 . 2 13 . . . Processor 1 | . . . . . . . . . 1 . 4 6 6 Hackware 1 | . . . . . . . . . 4 . . . 5 Impact Weapon 1 | . . . . . . . . . . . 1 6 6 Naked Turns 625 | . 29 16 109 157 57 13 151 16 52 16 9 . . Heaviest Build 8 | . . . . . . . . . 2 2 8 3 3 Greatest Support 80 | 3 3 3 3 3 3 28 3 3 20 6 80 3 7 Greatest Overweight (x) 2 | . . . . . . . . . . . 2 . . Average Overweight (x) . | . . . . . . . . . . . . . . Largest Inventory Capacity 5 | 5 5 5 5 5 5 5 5 5 5 5 5 5 5 Average Capacity 5 | 5 5 5 5 5 5 5 5 5 5 5 5 5 5 Most Carried 5 | . . . 1 1 1 2 2 2 5 5 5 5 4 Average Carried 2 | . . . . 1 1 1 2 2 3 4 4 4 3 Final Capacity 5 | 5 5 5 5 5 5 5 5 5 5 5 5 5 5 Final Carried 5 | . . . 1 1 1 2 2 2 5 5 4 5 3 Class Distribution -------------------- 78% | Mutant 19% | Scavenger-Mutant Dominant Class ---------------- Mutant | -10/Materials Mutant | -10/Mines Mutant | -10/Exiles Mutant | -9/Mines Mutant | -8/Materials Mutant | -7/Factory Mutant | -7/Lower Caves Mutant | -7/Lower Caves Mutant | -6/Factory Mutant | -6/Extension Mutant | -6/Cetus Scavenger-Mutant | -6/Archives Scavenger-Mutant | -6/Hub_04(d) Resources | -11 -10 -10 -10 -9 -8 -7 -7 -7 -6 -6 -6 -6 -6 ----------- Run | Jun Mat Min Exi Min Mat Fac Low Low Fac Ext Cet Arc Hub Matter Collected 466 | 95 . 40 . 25 8 . 28 . . 65 105 . 100 Remotely . | . . . . . . . . . . . . . . Salvage Created 286 | . . . . . . . . . . 48 146 29 63 Parts 23 | . . . . . . . . . . 12 6 3 2 Haulers Intercepted . | . . . . . . . . . . . . . . Recyclers Shooed 1 | . . . . . . . . . . 1 . . . Parts Field Recycled . | . . . . . . . . . . . . . . Retrieved Matter . | . . . . . . . . . . . . . . Parts Self-Destructed 3 | . . . . . . . 3 . . . . . . Prevented . | . . . . . . . . . . . . . . Kills | -11 -10 -10 -10 -9 -8 -7 -7 -7 -6 -6 -6 -6 -6 ------- Run | Jun Mat Min Exi Min Mat Fac Low Low Fac Ext Cet Arc Hub Combat Hostiles Destroyed 5 | . . . . . . . . . . 4 . . 1 Melee 1 | . . . . . . . . . . . . . 1 AOE 4 | . . . . . . . . . . 4 . . . Classes Destroyed 7 | . . . . . . . . . . 2 1 1 3 Worker 1 | . . . . . . . . . . . . . 1 Builder 1 | . . . . . . . . . . 1 . . . Operator 1 | . . . . . . . . . . . . 1 . Watcher 1 | . . . . . . . . . . . . . 1 Swarmer 4 | . . . . . . . . . . 4 . . . Cutter 1 | . . . . . . . . . . . . . 1 Cetus Guard 2 | . . . . . . . . . . . 2 . . Best Kill Streak 5 | . . . . . . . . . . 5 . 1 2 Combat Bots Only 4 | . . . . . . . . . . 4 . . 1 Max Kills in Single Turn 2 | . . . . . . . . . . 2 1 1 1 Gunslinging . | . . . . . . . . . . . . . . Exploded 2 | . . . . . . . . . . 2 . . . Melee 1 | . . . . . . . . . . . . . 1 Uniques/NPCs Destroyed . | . . . . . . . . . . . . . . Combat | -11 -10 -10 -10 -9 -8 -7 -7 -7 -6 -6 -6 -6 -6 -------- Run | Jun Mat Min Exi Min Mat Fac Low Low Fac Ext Cet Arc Hub Damage Taken 3570 | . . 1 . 5 149 172 432 36 277 740 177 852 729 Core 1443 | . . 1 . 5 149 82 317 36 161 310 109 105 168 Absorbed by Shields 20 | . . . . . . . . . . . . . 20 Core Remaining (%) 76 | 100 . . . 97 72 . . 37 . . . . . Volleys Fired 10 | . . . . . . . . . . 4 3 . 3 Largest 1 | . . . . . . . . . . 1 1 . 1 Hottest 43 | . . . . . . . . . . 43 . . 43 Shots Fired 10 | . . . . . . . . . . 4 3 . 3 Gun . | . . . . . . . . . . . . . . Cannon . | . . . . . . . . . . . . . . Launcher 5 | . . . . . . . . . . 4 . . 1 Special 5 | . . . . . . . . . . . 3 . 2 Kinetic . | . . . . . . . . . . . . . . Thermal . | . . . . . . . . . . . . . . Explosive 5 | . . . . . . . . . . 4 . . 1 Electromagnetic . | . . . . . . . . . . . . . . Robot Hit Streak 5 | . . . . . . . . . . 2 5 . 1 Robot Miss Streak 1 | . . . . . . . . . . 1 . . 1 Penetration Max . | . . . . . . . . . . . . . . Secondary Targets . | . . . . . . . . . . . . . . Shots Hit Robots 16 | . . . . . . . . . . 2 7 2 5 Core Hits 16 | . . . . . . 1 . . . 12 1 1 1 Critical Kills 1 | . . . . . . . . . . . . 1 . Critical Parts Destroyed 1 | . . . . . . . . . . . . 1 . Critical Strikes 2 | . . . . . . . . . . . . 2 . Smash 2 | . . . . . . . . . . . . 2 . Melee Attacks 24 | . . . . . . . . . . . 7 6 11 Impact 24 | . . . . . . . . . . . 7 6 11 Slashing . | . . . . . . . . . . . . . . Piercing . | . . . . . . . . . . . . . . Sneak Attacks 6 | . . . . . . . . . . . 4 1 1 Combat Hostiles . | . . . . . . . . . . . . . . Follow-up Attacks . | . . . . . . . . . . . . . . Damage Inflicted 1207 | . . 2 . 7 12 17 . . 6 544 265 134 220 Guns . | . . . . . . . . . . . . . . Cannons . | . . . . . . . . . . . . . . Explosions 500 | . . . . . . . . . . 500 . . . Melee 617 | . . . . . . . . . . . 265 134 218 Ramming 90 | . . 2 . 7 12 17 . . 6 44 . . 2 Kinetic . | . . . . . . . . . . . . . . Thermal . | . . . . . . . . . . . . . . Explosive 500 | . . . . . . . . . . 500 . . . Electromagnetic . | . . . . . . . . . . . . . . Impact 617 | . . . . . . . . . . . 265 134 218 Slashing . | . . . . . . . . . . . . . . Piercing . | . . . . . . . . . . . . . . Highest Corruption 19 | . . . . . . 5 5 5 . 1 11 11 19 Average Corruption 6 | . . . . . . 5 5 5 . 1 3 11 12 Corruption Purged . | . . . . . . . . . . . . . . Corruption Blocked . | . . . . . . . . . . . . . . Effects 30 | . . . . . . 3 2 1 . . 3 3 18 Message Errors 3 | . . . . . . . 1 . . . 1 . 1 Matter Fused 8 | . . . . . . 1 1 . . . . . 6 Heat Flow Errors 3 | . . . . . . . . 1 . . . . 2 Energy Discharges 2 | . . . . . . 1 . . . . . . 1 Parts Rejected 1 | . . . . . . . . . . . . 1 . Parts Fused 1 | . . . . . . . . . . . . . 1 Data Loss (minor) 4 | . . . . . . . . . . . 2 1 1 Data Loss (major) 1 | . . . . . . . . . . . . . 1 Alerts 1 | . . . . . . 1 . . . . . . . Misdirections 6 | . . . . . . . . . . . . 1 5 Overload Shots . | . . . . . . . . . . . . . . Overflow Damage 157 | . . . . . . . . . . 1 53 42 61 Projectiles . | . . . . . . . . . . . . . . Explosions 1 | . . . . . . . . . . 1 . . . Melee 156 | . . . . . . . . . . . 53 42 61 Knockbacks 1 | . . . . . . . . . . . . . 1 Impact 1 | . . . . . . . . . . . . . 1 Kinetic . | . . . . . . . . . . . . . . Secondary . | . . . . . . . . . . . . . . Self-Inflicted Damage 48 | . . 1 . 3 4 7 . . 3 29 . . 1 Shots 1 | . . . . . . . . . . 1 . . . Rammed 33 | . . 1 . 5 6 7 . . 1 12 . . 1 Targets Rammed 33 | . . 1 . 5 6 7 . . 1 12 . . 1 Kicked . | . . . . . . . . . . . . . . Crushed . | . . . . . . . . . . . . . . Highest Temperature 144 | . . . . . . . 11 144 . . . . 135 Average Temperature 74 | . . . . . . . 11 76 . . . . 82 Received Heat Transfer 708 | . . . . . 27 30 229 18 12 147 45 126 74 Siege Activations . | . . . . . . . . . . . . . . Robots Corrupted . | . . . . . . . . . . . . . . Combat Hostiles . | . . . . . . . . . . . . . . Parts Fried 3 | . . . . . . . . . . . . . 3 Impact Corruptions 5 | . . . . . . . . . . . 1 1 3 Robots Melted . | . . . . . . . . . . . . . . Combat Hostiles . | . . . . . . . . . . . . . . Parts Melted . | . . . . . . . . . . . . . . Heat Transferred . | . . . . . . . . . . . . . . Parts Sabotaged . | . . . . . . . . . . . . . . Parts Stolen . | . . . . . . . . . . . . . . Parts Stripped . | . . . . . . . . . . . . . . Power Chain Reactions . | . . . . . . . . . . . . . . Missiles Intercepted . | . . . . . . . . . . . . . . Alert | -11 -10 -10 -10 -9 -8 -7 -7 -7 -6 -6 -6 -6 -6 ------- Run | Jun Mat Min Exi Min Mat Fac Low Low Fac Ext Cet Arc Hub Peak Influence 624 | . 15 5 . . 30 148 . . 83 244 624 329 615 Initial 249 | . . 5 . . . 13 . . 37 35 102 249 114 Average 156 | . 6 5 . . 21 80 . . 55 89 364 294 324 Maximum Alert Level 2 | . . . . . . . . . . 1 2 1 2 Low Security (%) 70 | 100 100 100 . 100 100 100 . . 100 86 43 . 18 Level 1 18 | . . . . . . . . . . 13 6 100 58 Level 2 10 | . . . . . . . . . . . 49 . 23 Level 3 . | . . . . . . . . . . . . . . Level 4 . | . . . . . . . . . . . . . . Level 5 . | . . . . . . . . . . . . . . High Security . | . . . . . . . . . . . . . . Max Security . | . . . . . . . . . . . . . . Squads Dispatched 18 | . . . . . . 6 . . 2 3 2 . 5 Investigation 8 | . . . . . . 1 . . 2 1 2 . 2 Extermination . | . . . . . . . . . . . . . . Reinforcement 10 | . . . . . . 5 . . . 2 . . 3 Assault . | . . . . . . . . . . . . . . Garrison . | . . . . . . . . . . . . . . Intercept . | . . . . . . . . . . . . . . Searches Triggered . | . . . . . . . . . . . . . . Construction Impeded . | . . . . . . . . . . . . . . Haulers Reinforced 1 | . . . . . . 1 . . . . . . . Active Scanning Responses . | . . . . . . . . . . . . . . Cargo Convoy Interrupts . | . . . . . . . . . . . . . . Stealth | -11 -10 -10 -10 -9 -8 -7 -7 -7 -6 -6 -6 -6 -6 --------- Run | Jun Mat Min Exi Min Mat Fac Low Low Fac Ext Cet Arc Hub Distress Signals 3 | . . . . . 1 . . . . . 1 . 1 Communications Jammed . | . . . . . . . . . . . . . . Distress Signals . | . . . . . . . . . . . . . . Times Spotted 105 | . 3 . . 3 4 7 10 4 6 23 18 4 23 Peak Tracking Total 14 | . 2 . . 3 5 2 7 4 6 14 5 4 8 Tactical Retreats 14 | . . . . . . 1 4 . . 3 2 . 4 Traps | -11 -10 -10 -10 -9 -8 -7 -7 -7 -6 -6 -6 -6 -6 ------- Run | Jun Mat Min Exi Min Mat Fac Low Low Fac Ext Cet Arc Hub Traps Triggered 4 | . . . . . 1 . . . 1 1 . . 1 Indirectly . | . . . . . . . . . . . . . . Trap Hack Attempts . | . . . . . . . . . . . . . . Triggered . | . . . . . . . . . . . . . . Disarmed . | . . . . . . . . . . . . . . Reprogrammed . | . . . . . . . . . . . . . . Reused . | . . . . . . . . . . . . . . Traps Extracted . | . . . . . . . . . . . . . . Installed . | . . . . . . . . . . . . . . Triggered . | . . . . . . . . . . . . . . Machines | -11 -10 -10 -10 -9 -8 -7 -7 -7 -6 -6 -6 -6 -6 ---------- Run | Jun Mat Min Exi Min Mat Fac Low Low Fac Ext Cet Arc Hub Machines Disabled 9 | . . . . . . . . . . . 2 1 6 Max in Single Turn 1 | . . . . . . . . . . . . 1 1 Machines Repaired . | . . . . . . . . . . . . . . Machines Sabotaged . | . . . . . . . . . . . . . . Overloaded Fab Kills . | . . . . . . . . . . . . . . Hacking | -11 -10 -10 -10 -9 -8 -7 -7 -7 -6 -6 -6 -6 -6 --------- Run | Jun Mat Min Exi Min Mat Fac Low Low Fac Ext Cet Arc Hub Machines Accessed 19 | . . . 1 . . 4 . . 4 3 3 . 4 Terminals 15 | . . . . . . 3 . . 2 3 3 . 4 Fabricators . | . . . . . . . . . . . . . . Repair Stations 2 | . . . . . . . . . 2 . . . . Recycling Units 1 | . . . . . . 1 . . . . . . . Scanalyzers . | . . . . . . . . . . . . . . Garrison Access . | . . . . . . . . . . . . . . Total Hacks 38 | . . . 1 . . 4 . . 9 6 7 . 11 Successful 13 | . . . 1 . . 3 . . 2 3 1 . 3 Failed 25 | . . . . . . 1 . . 7 3 6 . 8 Catastrophic 10 | . . . . . . . . . 3 1 2 . 4 Database Lockouts . | . . . . . . . . . . . . . . Manual 4 | . . . 1 . . 2 . . 1 . . . . Terminals 31 | . . . . . . 3 . . 4 6 7 . 11 Fabricators . | . . . . . . . . . . . . . . Repair Stations 5 | . . . . . . . . . 5 . . . . Recycling Units 1 | . . . . . . 1 . . . . . . . Scanalyzers . | . . . . . . . . . . . . . . Garrison Access . | . . . . . . . . . . . . . . Terminal Hacks 11 | . . . 1 . . 2 . . 1 3 1 . 3 Record 1 | . . . . . . . . . . . 1 . . Prototype ID Bank 1 | . . . . . . . . . . . . . 1 Open Door 3 | . . . . . . . . . . 3 . . . Branch Access Points 3 | . . . . . . 1 . . 1 . . . 1 Hauler Manifests 1 | . . . . . . . . . . . . . 1 Zone Layout 1 | . . . . . . 1 . . . . . . . EX-Prototype ID Bank 1 | . . . 1 . . . . . . . . . . Fabricator Hacks . | . . . . . . . . . . . . . . Repair Station Hacks 1 | . . . . . . . . . 1 . . . . Refit 1 | . . . . . . . . . 1 . . . . Recycling Unit Hacks . | . . . . . . . . . . . . . . Scanalyzer . | . . . . . . . . . . . . . . Garrison Access Hacks . | . . . . . . . . . . . . . . Unauthorized Hacks 1 | . . . . . . 1 . . . . . . . Terminals . | . . . . . . . . . . . . . . Fabricators . | . . . . . . . . . . . . . . Repair Stations . | . . . . . . . . . . . . . . Recycling Units 1 | . . . . . . 1 . . . . . . . Tunnel 1 | . . . . . . 1 . . . . . . . Scanalyzers . | . . . . . . . . . . . . . . Garrison Access . | . . . . . . . . . . . . . . Data Cores Recovered . | . . . . . . . . . . . . . . Used . | . . . . . . . . . . . . . . Hacking Detections 14 | . . . . . . 3 . . 3 1 3 . 4 Full Trace Events 6 | . . . . . . . . . 2 1 2 . 1 Feedback Events . | . . . . . . . . . . . . . . Feedback Blocked . | . . . . . . . . . . . . . . Robot Schematics Acquired . | . . . . . . . . . . . . . . Robots Built . | . . . . . . . . . . . . . . Authchips . | . . . . . . . . . . . . . . Time . | . . . . . . . . . . . . . . Total Robot Build Rating . | . . . . . . . . . . . . . . Part Schematics Acquired . | . . . . . . . . . . . . . . Parts Built . | . . . . . . . . . . . . . . Authchips . | . . . . . . . . . . . . . . Time . | . . . . . . . . . . . . . . Total Part Build Rating . | . . . . . . . . . . . . . . Parts Repaired . | . . . . . . . . . . . . . . Time . | . . . . . . . . . . . . . . Parts Recycled . | . . . . . . . . . . . . . . Recycled Matter . | . . . . . . . . . . . . . . Retrieved Matter . | . . . . . . . . . . . . . . Retrieved Components . | . . . . . . . . . . . . . . Parts Scanalyzed . | . . . . . . . . . . . . . . Part Schematics Acquired . | . . . . . . . . . . . . . . Parts Damaged . | . . . . . . . . . . . . . . Bothacking | -11 -10 -10 -10 -9 -8 -7 -7 -7 -6 -6 -6 -6 -6 ------------ Run | Jun Mat Min Exi Min Mat Fac Low Low Fac Ext Cet Arc Hub Used RIF Installer . | . . . . . . . . . . . . . . Robots Hacked . | . . . . . . . . . . . . . . Non-combat . | . . . . . . . . . . . . . . Combat . | . . . . . . . . . . . . . . Robot Hacks Applied . | . . . . . . . . . . . . . . Relay Couplers Released . | . . . . . . . . . . . . . . Fabnet Peak Effective % . | . . . . . . . . . . . . . . Robots Rewired . | . . . . . . . . . . . . . . Allies Hacked . | . . . . . . . . . . . . . . Hacks Repelled . | . . . . . . . . . . . . . . Allies | -11 -10 -10 -10 -9 -8 -7 -7 -7 -6 -6 -6 -6 -6 -------- Run | Jun Mat Min Exi Min Mat Fac Low Low Fac Ext Cet Arc Hub Total Allies 9 | . . . . . . . . . . 5 3 . 1 Largest Group 3 | . . . . . . . . . . 3 3 . 1 Highest-Rated Group 246 | . . . . . . . . . . 87 246 . 85 Highest-Rated Ally 85 | . . . . . . . . . . 39 82 . 85 Total Orders . | . . . . . . . . . . . . . . Ally Attacks 85 | . . . . . . . . . . 13 48 . 24 Total Damage 3409 | . . . . . . . . . . 236 1998 . 1175 Kills 25 | . . . . . . . . . . . 15 . 10 Allies Corrupted 1 | . . . . . . . . . . . 1 . . Allies Melted . | . . . . . . . . . . . . . . Field Lobotomies 4 | . . . . . . . . . . . 3 . 1 Intel | -11 -10 -10 -10 -9 -8 -7 -7 -7 -6 -6 -6 -6 -6 ------- Run | Jun Mat Min Exi Min Mat Fac Low Low Fac Ext Cet Arc Hub Robot Analysis Total . | . . . . . . . . . . . . . . Derelict Logs Recovered 3 | . . . . 2 . . 1 . . . . . . Drone Launches . | . . . . . . . . . . . . . . Drone Recoveries . | . . . . . . . . . . . . . . Exploration | -11 -10 -10 -10 -9 -8 -7 -7 -7 -6 -6 -6 -6 -6 ------------- Run | Jun Mat Min Exi Min Mat Fac Low Low Fac Ext Cet Arc Hub Turns Passed 2076 | 14 29 16 109 157 57 305 207 16 260 288 203 73 342 Spaces Moved 3853 | 28 58 30 215 304 102 579 413 32 511 617 266 97 601 Core 3146 | 28 58 30 215 304 102 575 413 32 426 138 263 97 465 Treads 3 | . . . . . . . . . . . 3 . . Legs . | . . . . . . . . . . . . . . Wheels . | . . . . . . . . . . . . . . Hover 5 | . . . . . . 4 . . 1 . . . . Flight 699 | . . . . . . . . . 84 479 . . 136 Fastest Speed 29 | 50 50 50 50 50 50 48 50 50 40 40 50 50 29 Average Speed 48 | 50 50 50 50 50 50 50 50 50 48 42 51 50 46 Slowest Speed 160 | 50 50 50 50 50 50 60 50 50 60 50 160 50 115 Overloaded Moves 2 | . . . . . . . . . . . . . 2 Propulsion Burnouts . | . . . . . . . . . . . . . . Robots Hopped 21 | . . . . . . . . . 4 15 . . 2 Cave-ins Triggered 1 | . . . . . . . . . . . . . 1 Exploration Rate (%) 39 | 3 17 11 61 61 19 21 62 7 16 76 64 83 50 Regions Visited 13 Branch Regions 9 Pre-discovered Areas 1 | . . . . . . 1 . . . . . . . Known Exits Taken 3 | . . . . . 1 1 . . 1 . . . . Unknown Exits Taken 10 | 1 1 1 1 1 . . 1 1 . 1 1 1 . Scrap Searched 4 | . . 1 . 1 . . 2 . . . . . . Spaces Dug 20 | . . . . . . . . . . . . . 20 Terrain Destroyed 63 | . . . . . . . . . . 43 . . 20 Melee 5 | . . . . . . . . . . . . . 5 Projectile . | . . . . . . . . . . . . . . AOE 58 | . . . . . . . . . . 43 . . 15 Terrain Rammed . | . . . . . . . . . . . . . . Walls Destroyed . | . . . . . . . . . . . . . . Machines Disabled . | . . . . . . . . . . . . . . Actions | -11 -10 -10 -10 -9 -8 -7 -7 -7 -6 -6 -6 -6 -6 --------- Run | Jun Mat Min Exi Min Mat Fac Low Low Fac Ext Cet Arc Hub Total 3978 | 27 57 30 215 308 107 591 412 31 518 623 311 109 639 Wait 27 | . . . . . . . . . . 1 20 5 1 Move 3802 | 27 57 29 214 303 101 578 412 31 502 590 265 96 597 Hop 17 | . . . . . . . . . 4 11 . . 2 Pick Up 7 | . . . 1 . . 1 . . 2 . . 1 2 Fast Attach 22 | . . . . . . 5 . . 5 3 7 1 1 Attach 9 | . . . . . . . . . . 1 3 . 5 Detach 6 | . . . . . . . . . 1 1 3 . 1 Swap . | . . . . . . . . . . . . . . Drop 9 | . . . . . . . . . 3 . 3 . 3 Fire 10 | . . . . . . . . . . 4 3 . 3 Melee 24 | . . . . . . . . . . . 7 6 11 Ram 33 | . . 1 . 5 6 7 . . 1 12 . . 1 Kick . | . . . . . . . . . . . . . . Crush . | . . . . . . . . . . . . . . Escape Stasis 12 | . . . . . . . . . . . . . 12 Rewire . | . . . . . . . . . . . . . . Trap . | . . . . . . . . . . . . . . Miscellaneous . | . . . . . . . . . . . . . . Route ------- -11/Junkyard -10/Materials -10/Mines (discovered 2 exits: [*Mat] / *Exi) -10/Exiles -9/Mines -8/Materials (discovered 3 exits: *Fac x2 / Sto) -7/Factory (discovered 2 exits: *Low x2) -7/Lower Caves -7/Lower Caves -6/Factory (discovered 4 exits: Low x2 / *Ext x2) -6/Extension (discovered 2 exits: [*Fac] / *Cet) -6/Cetus -6/Archives (discovered 2 exits: [*Fac] / *Hub) -6/Hub_04(d) (discovered 2 exits: [*Fac x2]) History --------- Turn | Location | Event 5 | -11/Junkyard | Discovered new exit (range 16) 15 | -11/Junkyard | Entered Materials 37 | -10/Materials | Discovered new exit (range 16) 44 | -10/Materials | Entered Mines 51 | -10/Mines | Discovered new exit (range 8) 58 | -10/Mines | Deemed a non-threat by the Exiles lab entrance 58 | -10/Mines | Discovered new exit (range 5) 60 | -10/Mines | Entered Exiles 75 | -10/Exiles | Met 8R-AWN 82 | -10/Exiles | Met EX-HEX 97 | -10/Exiles | Met EX-BIN 104 | -10/Exiles | Aligned with FarCom system 104 | -10/Exiles | Given EX-Vault access code 116 | -10/Exiles | Opened EX-Vault 119 | -10/Exiles | Found Field Lobotomy Kit 131 | -10/Exiles | Warned to stay clear of 0b10 Research branches 146 | -10/Exiles | Met EX-DEC 164 | -10/Exiles | Discovered new exit (range 10) 169 | -10/Exiles | Left Exiles lab with Field Lobotomy Kit 169 | -10/Exiles | Entered Mines 214 | -9/Mines | Learned 4 Materials zone layouts 305 | -9/Mines | Build established: Mutant 324 | -9/Mines | Discovered new exit (range 6) 326 | -9/Mines | Entered Materials 326 | -8/Materials | Evolved 4 slots: Propulsion x2, Utility x2 327 | -8/Materials | Identified exit to Factory 328 | -8/Materials | Identified exit to Storage 376 | -8/Materials | Discovered exit to Factory (range 15) 383 | -8/Materials | Entered Factory 383 | -7/Factory | Evolved 2 slots: Propulsion x1, Utility x1 558 | -7/Factory | Identified exit to Lower Caves 688 | -7/Factory | Entered Lower Caves 745 | -7/Lower Caves | Attacked by a faux Warlord 755 | -7/Lower Caves | Core integrity fell below 50% 771 | -7/Lower Caves | Learned Factory garrison access intel 775 | -7/Lower Caves | Lost 4 parts (4n) 890 | -7/Lower Caves | Discovered new exit (range 12) 895 | -7/Lower Caves | Entered another Lower Caves area 904 | -7/Lower Caves | Discovered new exit (range 15) 911 | -7/Lower Caves | Entered Factory 911 | -6/Factory | Evolved 2 slots: Propulsion x1, Utility x1 912 | -6/Factory | Loaded intel: 4 garrison access locations 1083 | -6/Factory | Identified exit to Lower Caves 1083 | -6/Factory | Identified exit to Extension 1171 | -6/Factory | Entered Extension 1193 | -6/Extension | Lost 3 parts (1p1n1u) 1243 | -6/Extension | Rescued a captive Derelict 1343 | -6/Extension | Spotted B-75 Beast 1345 | -6/Extension | Spotted B-75 Beast 1422 | -6/Extension | Rescued a captive Derelict 1423 | -6/Extension | Rescued a captive Derelict 1427 | -6/Extension | Core integrity fell below 50% 1432 | -6/Extension | Rescued a captive Derelict 1432 | -6/Extension | Rescued a captive Derelict 1451 | -6/Extension | Discovered new exit (range 10) 1451 | -6/Extension | Discovered new exit (range 6) 1459 | -6/Extension | Entered Cetus 1467 | -6/Cetus | Spotted Cetus Guard 1467 | -6/Cetus | Spotted Cetus Guard 1468 | -6/Cetus | Spotted Cetus Guard 1468 | -6/Cetus | Spotted Cetus Guard 1480 | -6/Cetus | Assimilated Cetus Guard with FLK Orb 1484 | -6/Cetus | Assimilated Cetus Guard with FLK Orb 1487 | -6/Cetus | Assimilated Cetus Guard with FLK Orb 1490 | -6/Cetus | Allies destroyed Cetus Guard 1499 | -6/Cetus | Lost 4 parts (2n2u) 1559 | -6/Cetus | Allies destroyed Cetus Guard 1590 | -6/Cetus | Destroyed Cetus Guard 1600 | -6/Cetus | Destroyed Cetus Guard 1608 | -6/Cetus | Discovered new exit (range 17) 1620 | -6/Cetus | System corruption reached 10% 1662 | -6/Cetus | Entered Archives 1681 | -6/Archives | Unable to access archive contents 1713 | -6/Archives | Unable to access archive contents 1715 | -6/Archives | Discovered new exit (range 17) 1718 | -6/Archives | Unable to access archive contents 1720 | -6/Archives | Discovered new exit (range 17) 1728 | -6/Archives | Core integrity fell below 20% 1735 | -6/Archives | Entered Hub_04(d) 1735 | -6/Hub_04(d) | Spotted B-75 Beast 1739 | -6/Hub_04(d) | Assimilated B-75 Beast with FLK Orb 1842 | -6/Hub_04(d) | Discovered new exit (range 10) 1924 | -6/Hub_04(d) | Build established: Scavenger-Mutant 1984 | -6/Hub_04(d) | Crushed by falling debris 2063 | -6/Hub_04(d) | Discovered new exit (range 10) 2077 | -6/Hub_04(d) | Destroyed by Y-54 Guardian with Flak Gun Last Messages --------------- 02027_ Acquired 7 matter. 02027_ Beast 5a destroyed. 02027_ U-05 Engineer lays Concrete. 02027_ U-05 Engineer builds a Wall. 02028_ Dropped Centrium Heavy Treads. 02029_ Acquired Surge Thruster. 02030_ U-05 Engineer lays Concrete. 02031_ Acquired 10 matter. 02031_ U-05 Engineer lays Concrete. 02031_ U-05 Engineer destroyed. 02032_ U-05 Engineer lays Concrete. 02042_ System corrupted: Surge Thruster fused. 02049_ U-05 Engineer lays Concrete. 02052_ ALERT: Suspicious intruders detected, dispatching Cutter reinforcements to area. 02059_ System corrupted: Matter fused (-6). 02062_ Connecting with Terminal... 02063_ EXIT=FOUND 02063_ Backup Mainframe disabled. 02063_ K-01 Serf exits level. Map ----- +----------------------------------------------------+ | | | | | | | | | | | | | | | | | ?????????????????????????????????????????????????? | | ?????????????????????????????????????????????????? | | ?????????????????????????????????????????????????? | | ?????????????????????????????????????????????????? | | ????????????????????##############???????????????? | | ????????????????????# #???????????????? | | ????????????????????# !! #???????????????? | | ????????????????????# !| #???????????????? | | ????????????????????# ! ##??????????????? | | ????????????????????# ! Y#??????????????? | | ????????????????????# #???????????????? | | ????????????????????# #???????????????? | | ????????????????????# #???????????????? | | ????????????????????# #???????????????? | | ????????????????????# ?????????????????? | | ????????????????????? ???????????????????? | | ??????????????????????? ????????##########???? | | ??????????????????????###@##????????# #???? | | ?????????????##+####### #????????# " " " #???? | | ????????????+ Y########## " " " #???? | | ????????????+ + " " " ##### | | ????????????###+####### ########## + | | ??????????????????????######????????# " " " ##### | | ????????????????????????????????????# " " " #???? | | ????????????????????????????????????# " " " #???? | | ????????????????????????????????????# #???? | | ????????????????????????????????????##+#######???? | | ?????????????????????????????????????????????????? | | ?????????????????????????????????????????????????? | | ?????????????????????????????????????????????????? | | ?????????????????????????????????????????????????? | | ?????????????????????????????????????????????????? | | ?????????????????????????????????????????????????? | | ?????????????????????????????????????????????????? | | ?????????????????????????????????????????????????? | | ?????????????????????????????????????????????????? | | ?????????????????????????????????????????????????? | | ?????????????????????????????????????????????????? | | ?????????????????????????????????????????????????? | | ?????????????????????????????????????????????????? | | ?????????????????????????????????????????????????? | | ?????????????????????????????????????????????????? | +----------------------------------------------------+ Best States ------------- Heat Dissipation 37 Energy Generation 11 Energy Capacity 100 Matter Stores 300 Matter Capacity 300 Sight Range 22 Terrain Scan Density 10 Evasion (%) 63 Recoil Reduction 2 Offensive Hacking 10 Defensive Hacking 12 Item Schematics ----------------- None Robot Schematics ------------------ None Fabricated ------------ Nothing Alien Tech Used ----------------- None Achievements -------------- None Challenges ------------ None Game ------ Seed TrackerContainmentCarapace Manual? 0 Play Time 00:31:57 Cumulative 139.8 hours Start 2023.04.25 @ 01:22:28 End 2023.04.25 @ 01:56:24 Sessions 1 Manual Loads 0 Difficulty Rogue Special Mode None Game No. 405 Rogue 405 Adventurer 0 Explorer 0 Win Type - Total 5 Types 5/0/0/0/0/0/0/0/0 Lore% 62 Gallery% 68 Achievement% 58 Wizard Run 0 Options --------- ASCII 0 Keyboard 0 Movement Numpad Keybinds 0 Fullscreen 1 Font 16/SmallcapsGlow Map View 75x55 Tactical HUD 1 Map Filters NONE Filters NONE Steam 1 RUN: 5c7b8d22-ed82-4501-90be-4154838c8829